[Event "Titled Tuesday Blitz August 08 Early 2023"]
[White "Shapiro, Daniel"]
[Black "Nagare Kaivalya Sandip"]
[WhiteFideId "2001780"]
[BlackFideId "25957929"]
[WhiteElo "2367"]
[BlackElo "2658"]
[Result "0-1"]
[Round "2"]
[TimeControl "180+1"]
[Date "2023.08.08"]
[WhiteClock "0:00:13"]
[BlackClock "0:01:44"]
[Board "138"]

1. d4 {[%clk 0:03:00]}  Nf6 {[%clk 0:02:59]} 2. c4 {[%clk 0:03:00]}  e6 {[%clk 0:03:00]} 3. g3 {[%clk 0:02:58]}  Bb4+ {[%clk 0:02:58]} 4. Bd2 {[%clk 0:02:57]}  Qe7 {[%clk 0:02:57]} 5. Bg2 {[%clk 0:02:55]}  Nc6 {[%clk 0:02:58]} 6. Nf3 {[%clk 0:02:54]}  Bxd2+ {[%clk 0:02:55]} 7. Qxd2 {[%clk 0:02:55]}  Ne4 {[%clk 0:02:55]} 8. Qc2 {[%clk 0:02:52]}  Qb4+ {[%clk 0:02:55]} 9. Kf1 {[%clk 0:02:31]}  d5 {[%clk 0:02:55]} 10. a3 {[%clk 0:02:15]}  Qe7 {[%clk 0:02:50]} 11. Nc3 {[%clk 0:02:02]}  Nf6 {[%clk 0:02:44]} 12. e3 {[%clk 0:01:52]}  O-O {[%clk 0:02:44]} 13. Ke2 {[%clk 0:01:37]}  dxc4 {[%clk 0:02:33]} 14. Rhd1 {[%clk 0:01:18]}  e5 {[%clk 0:02:31]} 15. d5 {[%clk 0:01:15]}  Na5 {[%clk 0:02:30]} 16. e4 {[%clk 0:01:12]}  Nb3 {[%clk 0:02:28]} 17. Rab1 {[%clk 0:01:13]}  Bg4 {[%clk 0:02:28]} 18. Kf1 {[%clk 0:01:06]}  Bxf3 {[%clk 0:02:28]} 19. Bxf3 {[%clk 0:01:01]}  Nd4 {[%clk 0:02:28]} 20. Rxd4 {[%clk 0:00:59]}  exd4 {[%clk 0:02:29]} 21. Nb5 {[%clk 0:00:51]}  Qc5 {[%clk 0:02:26]} 22. a4 {[%clk 0:00:51]}  a6 {[%clk 0:02:26]} 23. Na3 {[%clk 0:00:49]}  b5 {[%clk 0:02:25]} 24. b4 {[%clk 0:00:47]}  d3 {[%clk 0:02:00]} 25. bxc5 {[%clk 0:00:41]}  dxc2 {[%clk 0:01:59]} 26. Nxc2 {[%clk 0:00:42]}  Rab8 {[%clk 0:01:54]} 27. e5 {[%clk 0:00:40]}  Nd7 {[%clk 0:01:53]} 28. d6 {[%clk 0:00:21]}  Nxe5 {[%clk 0:01:50]} 29. Be4 {[%clk 0:00:19]}  cxd6 {[%clk 0:01:50]} 30. cxd6 {[%clk 0:00:18]}  Rfd8 {[%clk 0:01:50]} 31. axb5 {[%clk 0:00:17]}  axb5 {[%clk 0:01:51]} 32. f4 {[%clk 0:00:17]}  Nd3 {[%clk 0:01:50]} 33. Bxd3 {[%clk 0:00:14]}  cxd3 {[%clk 0:01:51]} 34. Nb4 {[%clk 0:00:14]}  Rxd6 {[%clk 0:01:51]} 35. Rd1 {[%clk 0:00:14]}  Rbd8 {[%clk 0:01:51]} 36. Kf2 {[%clk 0:00:14]}  d2 {[%clk 0:01:49]} 37. Ke3 {[%clk 0:00:13]}  Re6+ {[%clk 0:01:44]} 0-1


[Site "https://www.chess.com"]

[Event "Titled Tuesday Blitz August 08 Early 2023"]
[White "Gamayev, Oleg"]
[Black "Villuendas Valero, Adrian"]
[WhiteFideId "2802813"]
[BlackFideId "2262460"]
[WhiteElo "2640"]
[BlackElo "2328"]
[Result "1-0"]
[Round "2"]
[TimeControl "180+1"]
[Date "2023.08.08"]
[WhiteClock "0:01:39"]
[BlackClock "0:00:20"]
[Board "139"]

1. d3 {[%clk 0:02:59]}  Nf6 {[%clk 0:02:58]} 2. e4 {[%clk 0:02:59]}  d6 {[%clk 0:02:57]} 3. Nf3 {[%clk 0:02:59]}  g6 {[%clk 0:02:57]} 4. Be2 {[%clk 0:02:59]}  Bg7 {[%clk 0:02:58]} 5. O-O {[%clk 0:03:00]}  O-O {[%clk 0:02:59]} 6. c3 {[%clk 0:03:00]}  c6 {[%clk 0:02:58]} 7. a4 {[%clk 0:03:01]}  e5 {[%clk 0:02:58]} 8. h3 {[%clk 0:03:01]}  a5 {[%clk 0:02:58]} 9. Re1 {[%clk 0:03:02]}  Nbd7 {[%clk 0:02:57]} 10. Nbd2 {[%clk 0:03:03]}  Nb6 {[%clk 0:02:57]} 11. Qc2 {[%clk 0:03:04]}  Be6 {[%clk 0:02:56]} 12. b3 {[%clk 0:03:05]}  Qc7 {[%clk 0:02:55]} 13. Ba3 {[%clk 0:03:05]}  Rfe8 {[%clk 0:02:54]} 14. Rab1 {[%clk 0:03:06]}  Rad8 {[%clk 0:02:54]} 15. Nc4 {[%clk 0:03:06]}  Nxc4 {[%clk 0:02:50]} 16. bxc4 {[%clk 0:03:07]}  Nh5 {[%clk 0:02:47]} 17. Rb2 {[%clk 0:03:04]}  Nf4 {[%clk 0:02:47]} 18. Bf1 {[%clk 0:03:05]}  Rb8 {[%clk 0:02:43]} 19. Reb1 {[%clk 0:03:05]}  Bf6 {[%clk 0:02:41]} 20. d4 {[%clk 0:03:03]}  Bd7 {[%clk 0:02:35]} 21. c5 {[%clk 0:02:56]}  exd4 {[%clk 0:02:31]} 22. cxd6 {[%clk 0:02:52]}  Qd8 {[%clk 0:02:24]} 23. cxd4 {[%clk 0:02:51]}  Bc8 {[%clk 0:02:21]} 24. e5 {[%clk 0:02:50]}  Bg7 {[%clk 0:02:19]} 25. Qe4 {[%clk 0:02:43]}  Nd5 {[%clk 0:02:15]} 26. Bc4 {[%clk 0:02:40]}  Bf5 {[%clk 0:02:14]} 27. Qe2 {[%clk 0:02:32]}  Nc3 {[%clk 0:02:11]} 28. Qe1 {[%clk 0:02:27]}  Nxb1 {[%clk 0:02:11]} 29. Rxb1 {[%clk 0:02:28]}  Bxb1 {[%clk 0:02:11]} 30. Qxb1 {[%clk 0:02:29]}  Qd7 {[%clk 0:02:06]} 31. Ng5 {[%clk 0:02:23]}  Re6 {[%clk 0:01:31]} 32. Qb3 {[%clk 0:02:12]}  b5 {[%clk 0:01:08]} 33. Nxe6 {[%clk 0:02:05]}  Rb7 {[%clk 0:00:42]} 34. Nc5 {[%clk 0:01:59]}  bxc4 {[%clk 0:00:32]} 35. Qxb7 {[%clk 0:01:51]}  Qf5 {[%clk 0:00:31]} 36. Qb8+ {[%clk 0:01:40]}  Bf8 {[%clk 0:00:29]} 37. d7 {[%clk 0:01:40]}  Qb1+ {[%clk 0:00:20]} 38. Qxb1 {[%clk 0:01:39]} 1-0


[Site "https://www.chess.com"]

[Event "Titled Tuesday Blitz August 08 Early 2023"]
[White "Fernandez Hernandez, Gerardo"]
[Black "Lewicki, Miroslaw"]
[WhiteFideId "2207400"]
[BlackFideId "1113380"]
[WhiteElo "2236"]
[BlackElo "2619"]
[Result "0-1"]
[Round "2"]
[TimeControl "180+1"]
[Date "2023.08.08"]
[WhiteClock "0:00:00"]
[BlackClock "0:00:30"]
[Board "141"]

1. e4 {[%clk 0:03:00]}  b6 {[%clk 0:02:59]} 2. d4 {[%clk 0:02:57]}  Bb7 {[%clk 0:02:58]} 3. Bd3 {[%clk 0:02:57]}  Nf6 {[%clk 0:02:57]} 4. Qe2 {[%clk 0:02:57]}  e6 {[%clk 0:02:57]} 5. Nf3 {[%clk 0:02:56]}  d6 {[%clk 0:02:57]} 6. Nc3 {[%clk 0:02:51]}  Be7 {[%clk 0:02:57]} 7. O-O {[%clk 0:02:48]}  O-O {[%clk 0:02:57]} 8. h3 {[%clk 0:02:41]}  c5 {[%clk 0:02:57]} 9. Be3 {[%clk 0:02:39]}  Nc6 {[%clk 0:02:57]} 10. a3 {[%clk 0:02:29]}  Rc8 {[%clk 0:02:32]} 11. Qd2 {[%clk 0:02:10]}  cxd4 {[%clk 0:02:09]} 12. Nxd4 {[%clk 0:02:10]}  Ne5 {[%clk 0:02:10]} 13. f4 {[%clk 0:01:55]}  Nc4 {[%clk 0:02:03]} 14. Bxc4 {[%clk 0:01:26]}  Rxc4 {[%clk 0:02:04]} 15. Qd3 {[%clk 0:01:27]}  Rxc3 {[%clk 0:01:55]} 16. Qxc3 {[%clk 0:01:21]}  Nxe4 {[%clk 0:01:56]} 17. Qe1 {[%clk 0:01:22]}  Bh4 {[%clk 0:01:52]} 18. Qd1 {[%clk 0:01:11]}  Qf6 {[%clk 0:01:49]} 19. Nf3 {[%clk 0:00:51]}  Ba6 {[%clk 0:01:32]} 20. Bd4 {[%clk 0:00:44]}  Qxf4 {[%clk 0:01:31]} 21. Qc1 {[%clk 0:00:23]}  Qg3 {[%clk 0:01:11]} 22. Qe3 {[%clk 0:00:18]}  Bxf1 {[%clk 0:01:10]} 23. Rxf1 {[%clk 0:00:18]}  f5 {[%clk 0:01:02]} 24. Nxh4 {[%clk 0:00:18]}  Qxh4 {[%clk 0:01:03]} 25. Rf4 {[%clk 0:00:17]}  Qh6 {[%clk 0:00:55]} 26. Qf3 {[%clk 0:00:09]}  Ng5 {[%clk 0:00:38]} 27. Qg3 {[%clk 0:00:09]}  e5 {[%clk 0:00:38]} 28. Rh4 {[%clk 0:00:08]}  Ne4 {[%clk 0:00:35]} 29. Rxe4 {[%clk 0:00:05]}  fxe4 {[%clk 0:00:33]} 30. Be3 {[%clk 0:00:06]}  Qf6 {[%clk 0:00:32]} 31. Kh2 {[%clk 0:00:05]}  d5 {[%clk 0:00:31]} 32. c3 {[%clk 0:00:04]}  d4 {[%clk 0:00:31]} 33. cxd4 {[%clk 0:00:04]}  exd4 {[%clk 0:00:32]} 34. Bg5 {[%clk 0:00:05]}  Qe6 {[%clk 0:00:31]} 35. Bf4 {[%clk 0:00:03]}  e3 {[%clk 0:00:30]} 36. Be5 {[%clk 0:00:00]}  Rf7 {[%clk 0:00:30]} 0-1


[Site "https://www.chess.com"]

[Event "Titled Tuesday Blitz August 08 Early 2023"]
[White "nycjack1"]
[Black "Mitrovic, Darko R"]
[BlackFideId "927023"]
[WhiteElo "2528"]
[BlackElo "2115"]
[Result "1-0"]
[Round "2"]
[TimeControl "180+1"]
[Date "2023.08.08"]
[WhiteClock "0:00:06"]
[BlackClock "0:00:06"]
[Board "144"]

1. e4 {[%clk 0:03:00]}  e6 {[%clk 0:03:00]} 2. d4 {[%clk 0:03:00]}  d5 {[%clk 0:03:01]} 3. Nc3 {[%clk 0:03:01]}  Bb4 {[%clk 0:03:01]} 4. Ne2 {[%clk 0:03:01]}  Nf6 {[%clk 0:03:00]} 5. e5 {[%clk 0:02:46]}  Nfd7 {[%clk 0:02:59]} 6. a3 {[%clk 0:02:44]}  Be7 {[%clk 0:02:59]} 7. f4 {[%clk 0:02:44]}  c5 {[%clk 0:02:58]} 8. Be3 {[%clk 0:02:45]}  Nc6 {[%clk 0:02:56]} 9. g3 {[%clk 0:02:39]}  cxd4 {[%clk 0:02:48]} 10. Nxd4 {[%clk 0:02:39]}  g6 {[%clk 0:02:47]} 11. Qd2 {[%clk 0:02:35]}  Nxd4 {[%clk 0:02:44]} 12. Bxd4 {[%clk 0:02:36]}  Bc5 {[%clk 0:02:39]} 13. Bb5 {[%clk 0:02:35]}  Bxd4 {[%clk 0:02:33]} 14. Qxd4 {[%clk 0:02:34]}  O-O {[%clk 0:02:32]} 15. h4 {[%clk 0:02:25]}  Qb6 {[%clk 0:02:25]} 16. Qxb6 {[%clk 0:02:13]}  Nxb6 {[%clk 0:02:25]} 17. O-O-O {[%clk 0:02:10]}  h5 {[%clk 0:02:08]} 18. Be2 {[%clk 0:02:10]}  Bd7 {[%clk 0:02:00]} 19. g4 {[%clk 0:02:10]}  hxg4 {[%clk 0:01:58]} 20. h5 {[%clk 0:02:06]}  Kg7 {[%clk 0:01:54]} 21. Rdg1 {[%clk 0:02:03]}  Rh8 {[%clk 0:01:49]} 22. Rxg4 {[%clk 0:01:59]}  Rh6 {[%clk 0:01:45]} 23. Rhg1 {[%clk 0:01:52]}  Rxh5 {[%clk 0:01:24]} 24. Rxg6+ {[%clk 0:01:52]}  fxg6 {[%clk 0:01:24]} 25. Bxh5 {[%clk 0:01:52]}  Be8 {[%clk 0:01:21]} 26. Ne2 {[%clk 0:01:45]}  Bf7 {[%clk 0:01:16]} 27. Nd4 {[%clk 0:01:34]}  Rh8 {[%clk 0:01:03]} 28. Bg4 {[%clk 0:01:33]}  Re8 {[%clk 0:00:49]} 29. b3 {[%clk 0:01:18]}  Nd7 {[%clk 0:00:48]} 30. Kd2 {[%clk 0:01:14]}  a6 {[%clk 0:00:44]} 31. Rc1 {[%clk 0:01:05]}  Nf8 {[%clk 0:00:33]} 32. c4 {[%clk 0:00:59]}  Rd8 {[%clk 0:00:22]} 33. Ke3 {[%clk 0:00:50]}  dxc4 {[%clk 0:00:15]} 34. Rxc4 {[%clk 0:00:50]}  Rd7 {[%clk 0:00:11]} 35. Rc8 {[%clk 0:00:35]}  Re7 {[%clk 0:00:10]} 36. a4 {[%clk 0:00:28]}  Nh7 {[%clk 0:00:08]} 37. a5 {[%clk 0:00:09]}  Nf8 {[%clk 0:00:07]} 38. b4 {[%clk 0:00:09]}  Be8 {[%clk 0:00:06]} 39. Rb8 {[%clk 0:00:06]}  Ba4 {[%clk 0:00:06]} 40. Bf3 {[%clk 0:00:06]}  Kf7 {[%clk 0:00:05]} 41. Rxb7 {[%clk 0:00:06]}  Rxb7 {[%clk 0:00:05]} 42. Bxb7 {[%clk 0:00:07]}  Nd7 {[%clk 0:00:05]} 43. Bxa6 {[%clk 0:00:07]}  g5 {[%clk 0:00:05]} 44. Bc4 {[%clk 0:00:06]}  gxf4+ {[%clk 0:00:04]} 45. Kxf4 {[%clk 0:00:06]}  Nb8 {[%clk 0:00:04]} 46. Bxe6+ {[%clk 0:00:06]}  Ke7 {[%clk 0:00:04]} 47. Bc4 {[%clk 0:00:07]}  Nc6 {[%clk 0:00:04]} 48. Nxc6+ {[%clk 0:00:07]}  Bxc6 {[%clk 0:00:05]} 49. b5 {[%clk 0:00:07]}  Bh1 {[%clk 0:00:04]} 50. a6 {[%clk 0:00:06]}  Kd7 {[%clk 0:00:05]} 51. b6 {[%clk 0:00:06]}  Kc6 {[%clk 0:00:05]} 52. b7 {[%clk 0:00:07]}  Kc7 {[%clk 0:00:05]} 53. e6 {[%clk 0:00:07]}  Bc6 {[%clk 0:00:04]} 54. Ke5 {[%clk 0:00:07]}  Kb8 {[%clk 0:00:05]} 55. Kf6 {[%clk 0:00:07]}  Ba4 {[%clk 0:00:06]} 56. Ke7 {[%clk 0:00:07]}  Ka7 {[%clk 0:00:07]} 57. Kd8 {[%clk 0:00:07]}  Bc6 {[%clk 0:00:07]} 58. Kc7 {[%clk 0:00:08]}  Bxb7 {[%clk 0:00:05]} 59. e7 {[%clk 0:00:05]}  Bxa6 {[%clk 0:00:05]} 60. Bxa6 {[%clk 0:00:04]}  Kxa6 {[%clk 0:00:06]} 61. e8=Q {[%clk 0:00:04]}  Ka5 {[%clk 0:00:06]} 62. Qb8 {[%clk 0:00:04]}  Ka4 {[%clk 0:00:06]} 63. Qb2 {[%clk 0:00:05]}  Ka5 {[%clk 0:00:06]} 64. Qb3 {[%clk 0:00:06]}  Ka6 {[%clk 0:00:06]} 65. Qa4# {[%clk 0:00:06]} 1-0


[Site "https://www.chess.com"]

[Event "Titled Tuesday Blitz August 08 Early 2023"]
[White "Aepfler, Christian"]
[Black "Khandelwal, Ankush"]
[WhiteFideId "4628306"]
[BlackFideId "413470"]
[WhiteElo "2057"]
[BlackElo "2506"]
[Result "0-1"]
[Round "2"]
[TimeControl "180+1"]
[Date "2023.08.08"]
[WhiteClock "0:01:34"]
[BlackClock "0:00:39"]
[Board "145"]

1. e4 {[%clk 0:03:00]}  c5 {[%clk 0:02:58]} 2. c3 {[%clk 0:02:59]}  Nf6 {[%clk 0:02:49]} 3. e5 {[%clk 0:02:58]}  Nd5 {[%clk 0:02:48]} 4. Nf3 {[%clk 0:02:58]}  Nc6 {[%clk 0:02:44]} 5. d4 {[%clk 0:02:58]}  cxd4 {[%clk 0:02:42]} 6. cxd4 {[%clk 0:02:59]}  d6 {[%clk 0:02:42]} 7. Bc4 {[%clk 0:02:59]}  Nb6 {[%clk 0:02:41]} 8. Bb5 {[%clk 0:02:58]}  dxe5 {[%clk 0:02:40]} 9. Nxe5 {[%clk 0:02:58]}  Bd7 {[%clk 0:02:38]} 10. Bxc6 {[%clk 0:02:58]}  Bxc6 {[%clk 0:02:36]} 11. O-O {[%clk 0:02:58]}  g6 {[%clk 0:02:33]} 12. Nxc6 {[%clk 0:02:46]}  bxc6 {[%clk 0:02:32]} 13. Qc2 {[%clk 0:02:46]}  Rc8 {[%clk 0:02:23]} 14. Rd1 {[%clk 0:02:46]}  Bg7 {[%clk 0:02:22]} 15. Bf4 {[%clk 0:02:47]}  O-O {[%clk 0:02:21]} 16. Be5 {[%clk 0:02:47]}  Bxe5 {[%clk 0:01:57]} 17. dxe5 {[%clk 0:02:46]}  Qc7 {[%clk 0:01:56]} 18. Qe2 {[%clk 0:02:45]}  Rfd8 {[%clk 0:01:51]} 19. Nc3 {[%clk 0:02:45]}  Nd5 {[%clk 0:01:12]} 20. Nxd5 {[%clk 0:02:41]}  Rxd5 {[%clk 0:01:12]} 21. Rxd5 {[%clk 0:02:33]}  cxd5 {[%clk 0:01:13]} 22. e6 {[%clk 0:02:34]}  Qc1+ {[%clk 0:01:04]} 23. Rxc1 {[%clk 0:02:22]}  Rxc1+ {[%clk 0:01:05]} 24. Qf1 {[%clk 0:02:23]}  Rxf1+ {[%clk 0:01:06]} 25. Kxf1 {[%clk 0:02:23]}  fxe6 {[%clk 0:01:06]} 26. Ke2 {[%clk 0:02:21]}  Kf7 {[%clk 0:01:06]} 27. Ke3 {[%clk 0:02:21]}  e5 {[%clk 0:01:06]} 28. f4 {[%clk 0:02:21]}  exf4+ {[%clk 0:00:54]} 29. Kxf4 {[%clk 0:02:20]}  Kf6 {[%clk 0:00:54]} 30. b4 {[%clk 0:02:18]}  e5+ {[%clk 0:00:55]} 31. Ke3 {[%clk 0:02:19]}  Ke6 {[%clk 0:00:52]} 32. Kd3 {[%clk 0:02:14]}  Kd6 {[%clk 0:00:52]} 33. a4 {[%clk 0:02:14]}  Kc6 {[%clk 0:00:50]} 34. Ke3 {[%clk 0:02:12]}  a6 {[%clk 0:00:46]} 35. g4 {[%clk 0:02:09]}  g5 {[%clk 0:00:44]} 36. h3 {[%clk 0:02:09]}  d4+ {[%clk 0:00:41]} 37. Ke4 {[%clk 0:02:09]}  Kd6 {[%clk 0:00:40]} 38. Kd3 {[%clk 0:01:51]}  Kd5 {[%clk 0:00:40]} 39. Kd2 {[%clk 0:01:34]}  Kc4 {[%clk 0:00:39]} 0-1


[Site "https://www.chess.com"]

[Event "Titled Tuesday Blitz August 08 Early 2023"]
[White "Bluebaum, Matthias"]
[Black "Kupervaser, Erez"]
[WhiteFideId "24651516"]
[BlackFideId "2814587"]
[WhiteElo "3032"]
[BlackElo "2404"]
[Result "1-0"]
[Round "2"]
[TimeControl "180+1"]
[Date "2023.08.08"]
[WhiteClock "0:02:18"]
[BlackClock "0:00:55"]
[Board "146"]

1. d4 {[%clk 0:03:00]}  d5 {[%clk 0:02:58]} 2. c4 {[%clk 0:03:01]}  c6 {[%clk 0:02:58]} 3. Nf3 {[%clk 0:03:01]}  Nf6 {[%clk 0:02:58]} 4. Nc3 {[%clk 0:03:01]}  e6 {[%clk 0:02:57]} 5. Qc2 {[%clk 0:03:02]}  Nbd7 {[%clk 0:02:56]} 6. cxd5 {[%clk 0:03:02]}  exd5 {[%clk 0:02:56]} 7. Bg5 {[%clk 0:03:03]}  Be7 {[%clk 0:02:50]} 8. e3 {[%clk 0:03:04]}  Nh5 {[%clk 0:02:29]} 9. Bxe7 {[%clk 0:03:02]}  Qxe7 {[%clk 0:02:29]} 10. O-O-O {[%clk 0:03:03]}  Nhf6 {[%clk 0:02:27]} 11. Bd3 {[%clk 0:03:02]}  Nf8 {[%clk 0:02:25]} 12. h3 {[%clk 0:03:02]}  Be6 {[%clk 0:02:23]} 13. Kb1 {[%clk 0:03:03]}  O-O-O {[%clk 0:02:23]} 14. Na4 {[%clk 0:03:02]}  Kb8 {[%clk 0:02:22]} 15. Rc1 {[%clk 0:03:02]}  Qc7 {[%clk 0:02:11]} 16. Nc5 {[%clk 0:03:00]}  N8d7 {[%clk 0:02:09]} 17. Qa4 {[%clk 0:02:49]}  Nxc5 {[%clk 0:02:04]} 18. Rxc5 {[%clk 0:02:50]}  Ne4 {[%clk 0:01:49]} 19. Rc2 {[%clk 0:02:49]}  Qb6 {[%clk 0:01:41]} 20. Rhc1 {[%clk 0:02:47]}  Rhe8 {[%clk 0:01:36]} 21. Ne5 {[%clk 0:02:42]}  Rc8 {[%clk 0:01:25]} 22. f3 {[%clk 0:02:41]}  Nd6 {[%clk 0:01:24]} 23. Nxc6+ {[%clk 0:02:36]}  Rxc6 {[%clk 0:01:14]} 24. Rxc6 {[%clk 0:02:37]}  bxc6 {[%clk 0:01:15]} 25. Rxc6 {[%clk 0:02:38]}  Qd8 {[%clk 0:01:06]} 26. Rxd6 {[%clk 0:02:38]}  Qxd6 {[%clk 0:01:06]} 27. Qxe8+ {[%clk 0:02:38]}  Kb7 {[%clk 0:01:06]} 28. Qb5+ {[%clk 0:02:38]}  Kc7 {[%clk 0:01:00]} 29. Qc5+ {[%clk 0:02:35]}  Qxc5 {[%clk 0:00:59]} 30. dxc5 {[%clk 0:02:36]}  Kc6 {[%clk 0:00:59]} 31. b4 {[%clk 0:02:36]}  d4 {[%clk 0:00:59]} 32. exd4 {[%clk 0:02:17]}  Kd5 {[%clk 0:00:58]} 33. Ba6 {[%clk 0:02:18]}  Kxd4 {[%clk 0:00:55]} 34. c6 {[%clk 0:02:18]} 1-0


[Site "https://www.chess.com"]

[Event "Titled Tuesday Blitz August 08 Early 2023"]
[White "Zelbel, Patrick"]
[Black "Davidson, Kevin"]
[WhiteFideId "24624322"]
[BlackFideId "2056810"]
[WhiteElo "2791"]
[BlackElo "2400"]
[Result "1-0"]
[Round "2"]
[TimeControl "180+1"]
[Date "2023.08.08"]
[WhiteClock "0:01:22"]
[BlackClock "0:00:27"]
[Board "151"]

1. e4 {[%clk 0:03:00]}  c5 {[%clk 0:02:59]} 2. b4 {[%clk 0:03:00]}  cxb4 {[%clk 0:02:59]} 3. a3 {[%clk 0:03:00]}  d5 {[%clk 0:02:59]} 4. exd5 {[%clk 0:02:59]}  Qxd5 {[%clk 0:02:59]} 5. Nf3 {[%clk 0:02:59]}  e5 {[%clk 0:02:51]} 6. c4 {[%clk 0:02:59]}  bxc3 {[%clk 0:02:37]} 7. Nxc3 {[%clk 0:02:59]}  Qa5 {[%clk 0:02:27]} 8. Qb3 {[%clk 0:02:51]}  Nc6 {[%clk 0:02:22]} 9. Bc4 {[%clk 0:02:48]}  Nh6 {[%clk 0:02:12]} 10. d3 {[%clk 0:02:48]}  Nd4 {[%clk 0:01:59]} 11. Nxd4 {[%clk 0:02:26]}  exd4 {[%clk 0:01:59]} 12. O-O {[%clk 0:02:07]}  Qxc3 {[%clk 0:01:44]} 13. Bb5+ {[%clk 0:02:03]}  Kd8 {[%clk 0:00:47]} 14. Qd5+ {[%clk 0:02:01]}  Kc7 {[%clk 0:00:46]} 15. Bf4+ {[%clk 0:01:35]}  Kb6 {[%clk 0:00:46]} 16. Rab1 {[%clk 0:01:35]}  a6 {[%clk 0:00:32]} 17. Bxa6+ {[%clk 0:01:25]}  Kxa6 {[%clk 0:00:29]} 18. Qb5+ {[%clk 0:01:24]}  Ka7 {[%clk 0:00:27]} 19. Qb6# {[%clk 0:01:22]} 1-0


[Site "https://www.chess.com"]

[Event "Titled Tuesday Blitz August 08 Early 2023"]
[White "Herman, Daniel"]
[Black "Mahdavi, Reza"]
[WhiteFideId "30935008"]
[BlackFideId "12595926"]
[WhiteElo "2398"]
[BlackElo "2752"]
[Result "0-1"]
[Round "2"]
[TimeControl "180+1"]
[Date "2023.08.08"]
[WhiteClock "0:00:00"]
[BlackClock "0:01:05"]
[Board "153"]

1. c4 {[%clk 0:03:00]}  c5 {[%clk 0:02:48]} 2. g3 {[%clk 0:02:59]}  g6 {[%clk 0:02:48]} 3. Bg2 {[%clk 0:02:59]}  Nc6 {[%clk 0:02:49]} 4. Nc3 {[%clk 0:02:53]}  Bg7 {[%clk 0:02:49]} 5. Rb1 {[%clk 0:02:53]}  e6 {[%clk 0:02:28]} 6. a3 {[%clk 0:02:50]}  Nge7 {[%clk 0:02:29]} 7. b4 {[%clk 0:02:49]}  cxb4 {[%clk 0:02:29]} 8. axb4 {[%clk 0:02:49]}  O-O {[%clk 0:02:30]} 9. Nf3 {[%clk 0:02:39]}  d5 {[%clk 0:02:25]} 10. cxd5 {[%clk 0:02:30]}  exd5 {[%clk 0:02:05]} 11. b5 {[%clk 0:02:14]}  Na5 {[%clk 0:02:04]} 12. d4 {[%clk 0:02:10]}  Bf5 {[%clk 0:01:48]} 13. Ra1 {[%clk 0:02:04]}  Rc8 {[%clk 0:01:49]} 14. Bd2 {[%clk 0:01:47]}  b6 {[%clk 0:01:49]} 15. O-O {[%clk 0:01:46]}  Qd7 {[%clk 0:01:43]} 16. Ne5 {[%clk 0:01:39]}  Qe6 {[%clk 0:01:34]} 17. e3 {[%clk 0:01:15]}  Rc7 {[%clk 0:01:30]} 18. Nc6 {[%clk 0:01:12]}  Naxc6 {[%clk 0:01:27]} 19. bxc6 {[%clk 0:01:13]}  Qxc6 {[%clk 0:01:28]} 20. Qb3 {[%clk 0:01:10]}  Be6 {[%clk 0:01:17]} 21. Nb5 {[%clk 0:01:04]}  Rb7 {[%clk 0:01:17]} 22. Rfc1 {[%clk 0:01:04]}  Qd7 {[%clk 0:01:17]} 23. Qa4 {[%clk 0:00:39]}  a5 {[%clk 0:01:17]} 24. Rc3 {[%clk 0:00:36]}  Rc8 {[%clk 0:01:16]} 25. Rxc8+ {[%clk 0:00:31]}  Nxc8 {[%clk 0:01:16]} 26. Rc1 {[%clk 0:00:30]}  Nd6 {[%clk 0:01:16]} 27. Bf1 {[%clk 0:00:25]}  Nc4 {[%clk 0:01:17]} 28. Bc3 {[%clk 0:00:10]}  h5 {[%clk 0:01:12]} 29. e4 {[%clk 0:00:06]}  Bh3 {[%clk 0:01:06]} 30. Bxh3 {[%clk 0:00:03]}  Qxh3 {[%clk 0:01:07]} 31. exd5 {[%clk 0:00:04]}  Bh6 {[%clk 0:01:05]} 32. Qxc4 {[%clk 0:00:04]}  Bxc1 {[%clk 0:01:06]} 33. Nd6 {[%clk 0:00:04]}  Re7 {[%clk 0:01:05]} 34. Qc8+ {[%clk 0:00:00]}  Qxc8 {[%clk 0:01:05]} 0-1


[Site "https://www.chess.com"]

[Event "Titled Tuesday Blitz August 08 Early 2023"]
[White "Bueno, Alfeu Junior Varela"]
[Black "Karthikeyan Pandiyan"]
[WhiteFideId "2108879"]
[BlackFideId "45084963"]
[WhiteElo "2397"]
[BlackElo "2751"]
[Result "1-0"]
[Round "2"]
[TimeControl "180+1"]
[Date "2023.08.08"]
[WhiteClock "0:01:06"]
[BlackClock "0:00:16"]
[Board "154"]

1. e4 {[%clk 0:02:57]}  c5 {[%clk 0:02:09]} 2. Nc3 {[%clk 0:02:54]}  Nc6 {[%clk 0:02:09]} 3. f4 {[%clk 0:02:54]}  g6 {[%clk 0:02:07]} 4. Nf3 {[%clk 0:02:55]}  Bg7 {[%clk 0:02:07]} 5. Bb5 {[%clk 0:02:56]}  e6 {[%clk 0:02:06]} 6. Bxc6 {[%clk 0:02:55]}  bxc6 {[%clk 0:02:03]} 7. d3 {[%clk 0:02:56]}  d6 {[%clk 0:02:03]} 8. O-O {[%clk 0:02:56]}  Ne7 {[%clk 0:02:02]} 9. e5 {[%clk 0:02:55]}  O-O {[%clk 0:02:01]} 10. Ne4 {[%clk 0:02:54]}  Nf5 {[%clk 0:01:55]} 11. exd6 {[%clk 0:02:52]}  Nd4 {[%clk 0:01:47]} 12. Nxc5 {[%clk 0:02:39]}  Nxf3+ {[%clk 0:01:47]} 13. Qxf3 {[%clk 0:02:40]}  Qxd6 {[%clk 0:01:45]} 14. Ne4 {[%clk 0:02:35]}  Qd5 {[%clk 0:01:45]} 15. c4 {[%clk 0:02:18]}  Qd4+ {[%clk 0:01:41]} 16. Kh1 {[%clk 0:02:04]}  Rd8 {[%clk 0:01:39]} 17. Rd1 {[%clk 0:02:01]}  Rb8 {[%clk 0:01:35]} 18. Rb1 {[%clk 0:02:00]}  f5 {[%clk 0:01:24]} 19. Nc3 {[%clk 0:01:56]}  c5 {[%clk 0:01:17]} 20. Be3 {[%clk 0:01:56]}  Qd6 {[%clk 0:01:05]} 21. Nb5 {[%clk 0:01:56]}  Qd7 {[%clk 0:00:42]} 22. Bxc5 {[%clk 0:01:53]}  Bb7 {[%clk 0:00:42]} 23. Qf2 {[%clk 0:01:49]}  a6 {[%clk 0:00:42]} 24. Nc3 {[%clk 0:01:45]}  e5 {[%clk 0:00:43]} 25. fxe5 {[%clk 0:01:40]}  Bxe5 {[%clk 0:00:43]} 26. d4 {[%clk 0:01:40]}  Bg7 {[%clk 0:00:38]} 27. d5 {[%clk 0:01:41]}  Rbc8 {[%clk 0:00:34]} 28. Rbc1 {[%clk 0:01:33]}  a5 {[%clk 0:00:29]} 29. b3 {[%clk 0:01:30]}  Re8 {[%clk 0:00:27]} 30. Bd4 {[%clk 0:01:29]}  Bh6 {[%clk 0:00:25]} 31. Rb1 {[%clk 0:01:25]}  a4 {[%clk 0:00:25]} 32. Nxa4 {[%clk 0:01:22]}  Re4 {[%clk 0:00:22]} 33. Nc5 {[%clk 0:01:18]}  Rxc5 {[%clk 0:00:22]} 34. Bxc5 {[%clk 0:01:18]}  Qe8 {[%clk 0:00:20]} 35. Re1 {[%clk 0:01:06]}  Bf4 {[%clk 0:00:16]} 1-0


[Site "https://www.chess.com"]